Workbook

Sheet List1
A3: Obec , IČ: Náklo, 00299251
A5: Rozpočtové opatření č. 16 - 19. prosince 2022
A7: V souladu s ustanovením § 16 zákona č. 250/2000 Sb., o rozpočtových pravidlech územních rozpočtů dojde k rozpočtovému
A8: opatření v případě změn rozpočtových prostředků na závazných ukazatelích.
A10: Rozpočtové opatření č. 16/2022 (předloženo na ZO 19. 12. 2022) a doplněno při jednání na rady obce
A12: PŘÍJMY
A13: PAR | B13: POL | C13: UZ | D13: PARAGRAF | E13: POLOŽKA | F13: Rozpočet na rok 2022 | G13: Rozpočet po změnách | H13: změna ROZP | I13: ROZP po ZMĚNĚ | J13: POZNÁMKA
B14: 1111 | E14: Příjem z daně z příjmů FO placené plátci | F14: 3803000 | G14: 3803000 | H14: 0 | I14: =H14+G14 -> 3803000
A15: 0 | B15: 1112 | E15: Daň z příjmů fyzických osob placená poplatníky | F15: 161000 | G15: 200641.84 | H15: 102717.17 | I15: =H15+G15 -> 303359.01
B16: 1113 | E16: Příjem z DPFO vybírané srážkou ze mzdy | F16: 633000 | G16: 633000 | H16: 151985.07 | I16: =H16+G16 -> 784985.07
B17: 1121 | E17: Příjem z daně z příjmů právnických osob | F17: 4736000 | G17: 4736000 | H17: 697337.3 | I17: =H17+G17 -> 5433337.3
B18: 1211 | E18: Příjem z DPH | F18: 13275000 | G18: 13275000 | H18: 548427.18 | I18: 13823427.18
A19: 0 | B19: 1342 | E19: Příjem z poplatku z pobytu | F19: 10000 | G19: 94185 | H19: 39830 | I19: 134015 | J19: poplatel u pobytu
A20: 0 | B20: 1345 | E20: příjem z poplatku za obecní systém odpadového hospodářství | F20: 480000 | G20: 630000 | H20: 81340 | I20: 711340 | J20: komunální odpad
B21: 1356 | E21: Příjem z úhrad za dobývání nerostů | F21: 400000 | G21: 400000 | H21: 43797.82 | I21: 443797.82
A22: 0 | B22: 1381 | E22: Daň z hazardních her | F22: 100000 | G22: 157986.96 | H22: 54390.66 | I22: =H22+G22 -> 212377.62
A23: 0 | B23: 4213 | E23: Investiční přijaté transfery ze státních rozpočtů | F23: 0 | G23: 0 | H23: 319872 | I23: 319872 | J23: dotace KD Mezice
A24: 0 | B24: 4216 | E24: Ostatní investiční přijeté transfery ze SR | F24: 2319872 | G24: 2319872 | H24: -319872 | I24: 2000000 | J24: dotace KD Mezice
D26: bez ODPA | F26: 30550319.7 | G26: 33319751.04 | H26: =SUM(H15:H25) -> 1719825.2 | I26: =H26+G26 -> 35039576.24
A27: 2219 | B27: 2322 | E27: Přijaté pojistné náhrady | F27: 0 | G27: 863940 | H27: 511589 | I27: =H27+G27 -> 1375529 | J27: pojistná událost
A28: 2219 | D28: Ostatní záležitosti pozemních komunikací | F28: 0 | G28: 0 | H28: =H27 -> 511589 | I28: =H28+G28 -> 511589
A29: 2321 | B29: 2111 | E29: Příjmy z poskytování služeb a výrobků | F29: 1200000 | G29: 1233799 | H29: 165507 | I29: 1399306 | J29: stočné
A30: 2321 | D30: Odvádění a čištění odpadních vod a nakl.s kaly | F30: 1200000 | G30: 1200000 | H30: =H29 -> 165507 | I30: 1365507
A31: 3613 | B31: 2132 | E31: Příjem z pronájmu nebo pachtu | F31: 130000 | G31: 130000 | H31: 6917 | I31: =H31+G31 -> 136917
A32: 3613 | D32: Nebytové hospodářství | F32: 130000 | G32: 130000 | H32: 6917 | I32: =H32+G32 -> 136917
A33: 3639 | B33: 2119 | E33: Ostatní příjmy z vlastní činnosti | F33: 0 | G33: 1210 | H33: 1210 | I33: 2420 | J33: náhrada za zřízení věcného břemene
A34: 3639 | D34: Komunální služby a územní rozvoj j.n. | F34: 125000 | G34: 129600 | H34: =H33 -> 1210 | I34: 130810
A35: 3722 | B35: 2111 | E35: Příjmy z poskytování služeb a výrobků | F35: 58000 | G35: 73476 | H35: 5606 | I35: 79082 | J35: komunální odpad podnikatelé
A36: 3722 | D36: Sběr a svoz komunálních odpadů | F36: 58000 | G36: 58000 | H36: =H35 -> 5606 | I36: 63606
A37: 6171 | B37: 2310 | E37: Příjem z prodeje krátk. A drob. Majetku | F37: 0 | G37: 0 | H37: 4827.75 | I37: 4827.75
A38: 6171 | B38: 3113 | E38: Příjem z prodeje ostatního hmotného dlouh. Majetku | F38: 0 | G38: 0 | H38: 20172.25 | I38: 20172.25
A39: 6171 | D39: Činnost místní správy | F39: 76000 | G39: 624374 | H39: =H37+H38 -> 25000 | I39: 649374
D40: Celkem ZMĚNY v PŘÍJMECH | H40: =+H39+H36+H34+H30+H28+H26+H32 -> 2435654.2
D42: Celkem PŘÍJMY | G42: 38021327.04 | H42: =H40 -> 2435654.2 | I42: =H42+G42 -> 40456981.24
A44: VÝDAJE:
A45: PAR | B45: POL | C45: UZ | D45: PARAGRAF | E45: POLOŽKA | F45: Rozpočet na rok 2022 | G45: Rozpočet po změnách | H45: změna ROZP | I45: ROZP po ZMĚNĚ | J45: POZNÁMKA
A46: 6171 | B46: 5171 | E46: Opravy a udržování | F46: 150000 | G46: 2000000 | H46: =H40-H48 -> 1773163.2 | I46: =H46+G46 -> 3773163.2 | J46: oprava střechy
A47: 6171 | D47: Činnost místní správy | G47: 9236578.13 | H47: =H46 -> 1773163.2 | I47: 11009741.33
A48: 6399 | B48: 5362 | E48: Platby daní státnímu rozpočtu | F48: 150000 | G48: 150000 | H48: 662491 | I48: =H48+G48 -> 812491 | J48: daně
A49: 6399 | D49: Činnost místní správy | F49: 1150000 | G49: 1150000 | H49: =H48 -> 662491 | I49: =H49+G49 -> 1812491
D50: Celkem ZMĚNY ve VÝDAJÍCH | H50: =H49+H46 -> 2435654.2
D52: Celkem VÝDAJE | G52: 41730236.51 | H52: =H50 -> 2435654.2 | I52: =H52+G52 -> 44165890.71
D54: Celkem 5XXX | G54: 26880442.95 | H54: 2162686.31 | I54: 29043129.26
D55: Celkem 6XXX | G55: 12687107.25 | H55: 0 | I55: 12687107.25
A58: FINANCOVÁNÍ
A59: PAR | B59: POL | C59: UZ | D59: PARAGRAF | E59: POLOŽKA | G59: Upravený ROZP | H59: změna ROZP | I59: ROZP po ZMĚNĚ | J59: POZNÁMKA
D60: Celkem ZMĚNY ve FINANCOVÁNÍ: | H60: 0
D63: REKAPITULACE:
D65: Celkem PŘÍJMY | G65: =G42 -> 38021327.04 | H65: =H40 -> 2435654.2 | I65: =H65+G65 -> 40456981.24
D66: Celkem FINANCOVÁNÍ: | G66: 3708909.47 | H66: 0 | I66: 3708909.47
D67: Celkem PŘÍJMY+FINANCOVÁNÍ | G67: =G66+G65 -> 41730236.51 | H67: =H50 -> 2435654.2 | I67: =H67+G67 -> 44165890.71
D69: Celkem VÝDAJE | G69: =G52 -> 41730236.51 | H69: =H67 -> 2435654.2 | I69: =I52 -> 44165890.71
A72: Důvodová zpráva k rozpočtovému opatření č. 16 /2022
A74: Přesun prostředků v rámci nezajištěného výdaje je Čerpán z rezervy obce.
A76: Správce rozpočtu :
A78: Starosta obce :
A80: ZO schvaluje dne 19. 12. 2022 rozpočtové opatření č. 16/2022 v předloženém rozsahu.

Sheet List2
A1: TEXTY PRO FORMULÁŘ ÚPRAVA ROZPOČTU - na začátek kopírují se řádky 3-13
A2: poznámka: Texty, které budou přenášeny z tohoto formuláře, musí být zapsány pouze ve sloupci A
A5: Obec , IČ: Náklo, 00299251
A7: Rozpočtové změny roku 2019 -duben
A9: V souladu s ustanovením § 16 zákona č. 250/2000 Sb., o rozpočtových pravidlech územních rozpočtů dojde k rozpočtovému
A10: opatření v případě změn rozpočtových prostředků na závazných ukazatelích.
A12: Rozpočtové opatření č. 1/2019 (předloženo na ZQ 6. 6. 2018) a doplněno při jednání na ZO
A14: TEXTY PRO FORMULÁŘ ÚPRAVA ROZPOČTU - na začátek kopírují se řádky 16-32
A16: Důvodová zpráva k rozpočtovému opatření č. 1/2019
A18: Přesun prostředků v rámci nezajištěného výdaje je Čerpán z rezervy obce.
A20: Správce rozpočtu :
A22: Starosta obce :
A24: ZO schvaluje dne 6. 6. 2018 rozpočtové opatření č. 3/2018 v předloženém rozsahu Usnesením č. 1038/1860

Sheet List3
